[Event "Late-Titled-Tuesday-Blitz-January-30-2024"]
[Site "Chess.com"]
[Date "2024.01.30"]
[Round "11"]
[White "Fernando_Offermann"]
[Black "GianmarcoVaR"]
[Result "0-1"]
[WhiteElo "2509"]
[BlackElo "2667"]
[TimeControl "180+1"]
[EndTime "16:06:08 PST"]
[Termination "GianmarcoVaR won on time"]

1. Nf3 {[%clk 0:02:09.8]} 1... Nf6 {[%clk 0:02:10.1]} 2. g3 {[%clk 0:02:02.4]}
2... d5 {[%clk 0:01:58.4]} 3. Bg2 {[%clk 0:02:01.9]} 3... c6 {[%clk 0:01:55.6]}
4. O-O {[%clk 0:02:01.7]} 4... Bg4 {[%clk 0:01:54.7]} 5. h3 {[%clk 0:02:00.6]}
5... Bh5 {[%clk 0:01:52.4]} 6. d3 {[%clk 0:02:00.6]} 6... Nbd7 {[%clk 0:01:50]}
7. Nbd2 {[%clk 0:01:55.5]} 7... e5 {[%clk 0:01:46.5]} 8. e4 {[%clk 0:01:55.3]}
8... Bd6 {[%clk 0:01:43.3]} 9. Qe1 {[%clk 0:01:54.7]} 9... O-O {[%clk
0:01:40.3]} 10. Nh4 {[%clk 0:01:51.6]} 10... Re8 {[%clk 0:01:37.4]} 11. Nf5
{[%clk 0:01:48.6]} 11... Bf8 {[%clk 0:01:36.1]} 12. g4 {[%clk 0:01:48.7]} 12...
Bg6 {[%clk 0:01:36.3]} 13. Nf3 {[%clk 0:01:46.8]} 13... Nc5 {[%clk 0:01:26.6]}
14. N3h4 {[%clk 0:01:45.3]} 14... dxe4 {[%clk 0:01:22.9]} 15. dxe4 {[%clk
0:01:44.8]} 15... Nfd7 {[%clk 0:01:21.9]} 16. Be3 {[%clk 0:01:39]} 16... Qc7
{[%clk 0:00:58.9]} 17. Rd1 {[%clk 0:01:38.2]} 17... Ne6 {[%clk 0:00:59]} 18. Qd2
{[%clk 0:01:20.4]} 18... Rad8 {[%clk 0:00:57.7]} 19. Qc3 {[%clk 0:01:15.7]}
19... f6 {[%clk 0:00:29.3]} 20. Rd2 {[%clk 0:01:15.1]} 20... Bf7 {[%clk
0:00:28.7]} 21. Rfd1 {[%clk 0:01:14.8]} 21... Ndc5 {[%clk 0:00:26.2]} 22. f3
{[%clk 0:00:56.5]} 22... Rxd2 {[%clk 0:00:20.1]} 23. Rxd2 {[%clk 0:00:55.8]}
23... Rd8 {[%clk 0:00:21]} 24. Bf1 {[%clk 0:00:56.1]} 24... b5 {[%clk
0:00:15.1]} 25. a3 {[%clk 0:00:55.6]} 25... Na4 {[%clk 0:00:15.2]} 26. Qb3
{[%clk 0:00:39.6]} 26... g5 {[%clk 0:00:15.4]} 27. Ng2 {[%clk 0:00:38.7]} 27...
Nd4 {[%clk 0:00:15.8]} 28. Nxd4 {[%clk 0:00:27.5]} 28... exd4 {[%clk 0:00:14.8]}
29. Qd3 {[%clk 0:00:25.4]} 29... Bc4 {[%clk 0:00:09.6]} 30. Qxc4+ {[%clk
0:00:22.4]} 30... bxc4 {[%clk 0:00:09.4]} 31. Bxc4+ {[%clk 0:00:23]} 31... Kg7
{[%clk 0:00:08.2]} 32. Bf2 {[%clk 0:00:22.8]} 32... Nxb2 {[%clk 0:00:07.9]} 33.
Bb3 {[%clk 0:00:21.7]} 33... c5 {[%clk 0:00:07.9]} 34. c4 {[%clk 0:00:20.2]}
34... dxc3 {[%clk 0:00:06.5]} 35. Rc2 {[%clk 0:00:19.9]} 35... Rd1+ {[%clk
0:00:02.8]} 36. Ne1 {[%clk 0:00:17.9]} 36... Rd2 {[%clk 0:00:03.1]} 37. Rxc3
{[%clk 0:00:15.9]} 37... Rxf2 {[%clk 0:00:04]} 38. Kxf2 {[%clk 0:00:16]} 38...
Qe5 {[%clk 0:00:04.2]} 39. Re3 {[%clk 0:00:13.3]} 39... c4 {[%clk 0:00:04]} 40.
Bc2 {[%clk 0:00:13]} 40... Bc5 {[%clk 0:00:04.7]} 41. Ke2 {[%clk 0:00:12.6]}
41... Bxe3 {[%clk 0:00:04.8]} 42. Kxe3 {[%clk 0:00:13]} 42... Qc3+ {[%clk
0:00:05.7]} 43. Ke2 {[%clk 0:00:12]} 43... Qxa3 {[%clk 0:00:06.3]} 44. Ng2
{[%clk 0:00:11.5]} 44... Qb4 {[%clk 0:00:07.1]} 45. Ne3 {[%clk 0:00:11.8]} 45...
c3 {[%clk 0:00:07.8]} 46. Nd5 {[%clk 0:00:11.9]} 46... Qd4 {[%clk 0:00:07.8]}
0-1

[Event "Late-Titled-Tuesday-Blitz-January-30-2024"]
[Site "Chess.com"]
[Date "2024.01.30"]
[Round "11"]
[White "DonJuanEGenaro"]
[Black "NovakRatko"]
[Result "0-1"]
[WhiteElo "2050"]
[BlackElo "2398"]
[TimeControl "180+1"]
[EndTime "16:06:08 PST"]
[Termination "NovakRatko won on time"]

1. Nf3 {[%clk 0:03:00.9]} 1... d5 {[%clk 0:02:59.6]} 2. c4 {[%clk 0:02:58.5]}
2... d4 {[%clk 0:02:59.4]} 3. e3 {[%clk 0:02:57.3]} 3... c5 {[%clk 0:02:59.3]}
4. exd4 {[%clk 0:02:57]} 4... cxd4 {[%clk 0:02:59.4]} 5. d3 {[%clk 0:02:57.1]}
5... Nc6 {[%clk 0:02:59.1]} 6. g3 {[%clk 0:02:56.9]} 6... e5 {[%clk 0:02:59.2]}
7. Bg2 {[%clk 0:02:56.7]} 7... Bg4 {[%clk 0:02:59.6]} 8. h3 {[%clk 0:02:53.3]}
8... Bf5 {[%clk 0:02:59.4]} 9. O-O {[%clk 0:02:52.7]} 9... Qd7 {[%clk
0:02:59.4]} 10. Kh2 {[%clk 0:02:51.2]} 10... f6 {[%clk 0:02:59.2]} 11. Na3
{[%clk 0:02:46]} 11... Nb4 {[%clk 0:02:55]} 12. Ne1 {[%clk 0:02:43.5]} 12... a5
{[%clk 0:02:45.7]} 13. Nb5 {[%clk 0:02:39.1]} 13... a4 {[%clk 0:02:28.4]} 14. a3
{[%clk 0:02:26.6]} 14... Nc6 {[%clk 0:02:28.1]} 15. b4 {[%clk 0:02:24.8]} 15...
axb3 {[%clk 0:02:19.4]} 16. Qxb3 {[%clk 0:02:24.4]} 16... Bc5 {[%clk 0:02:19.2]}
17. f4 {[%clk 0:02:11]} 17... Nge7 {[%clk 0:02:09.3]} 18. fxe5 {[%clk
0:02:10.5]} 18... fxe5 {[%clk 0:01:50.8]} 19. g4 {[%clk 0:01:46.4]} 19... Be6
{[%clk 0:01:49.2]} 20. Bg5 {[%clk 0:01:39.3]} 20... Ng6 {[%clk 0:01:46.1]} 21.
Be4 {[%clk 0:01:36.8]} 21... Nf4 {[%clk 0:01:31.1]} 22. Bxf4 {[%clk 0:01:34.1]}
22... exf4 {[%clk 0:01:31.2]} 23. Rxf4 {[%clk 0:01:30.2]} 23... Bd6 {[%clk
0:01:31.2]} 24. Nxd6+ {[%clk 0:01:14.2]} 24... Qxd6 {[%clk 0:01:30.5]} 25. Ng2
{[%clk 0:01:12.4]} 25... g5 {[%clk 0:01:30]} 26. Qxb7 {[%clk 0:01:11.1]} 26...
Rc8 {[%clk 0:01:22.8]} 27. Qg7 {[%clk 0:01:09.6]} 27... Rg8 {[%clk 0:01:17.2]}
28. Qxh7 {[%clk 0:01:09]} 28... gxf4 {[%clk 0:01:17.1]} 29. Bf3 {[%clk
0:00:58.6]} 29... Ne5 {[%clk 0:01:13.8]} 30. Rf1 {[%clk 0:00:50]} 30... Nxf3+
{[%clk 0:00:58.4]} 31. Rxf3 {[%clk 0:00:46.7]} 31... Rc7 {[%clk 0:00:58.3]} 32.
Qh6 {[%clk 0:00:36.7]} 32... Rf7 {[%clk 0:00:51.3]} 33. Nxf4 {[%clk 0:00:34.3]}
33... Rgf8 {[%clk 0:00:50]} 34. Kg3 {[%clk 0:00:14.3]} 34... Kd7 {[%clk
0:00:49.4]} 35. h4 {[%clk 0:00:11.5]} 35... Rf6 {[%clk 0:00:39.7]} 36. Qh7+
{[%clk 0:00:09.2]} 36... R8f7 {[%clk 0:00:39.7]} 37. Qe4 {[%clk 0:00:08.7]}
37... Rg7 {[%clk 0:00:05.5]} 38. g5 {[%clk 0:00:06.4]} 38... Rff7 {[%clk
0:00:03.1]} 39. c5 {[%clk 0:00:05.7]} 39... Qc7 {[%clk 0:00:03]} 40. Qxe6+
{[%clk 0:00:05.2]} 40... Kd8 {[%clk 0:00:03.2]} 41. Rf2 {[%clk 0:00:02.8]} 41...
Re7 {[%clk 0:00:03.2]} 42. Qd5+ {[%clk 0:00:02.8]} 42... Rd7 {[%clk 0:00:02.9]}
0-1

[Event "Late-Titled-Tuesday-Blitz-January-30-2024"]
[Site "Chess.com"]
[Date "2024.01.30"]
[Round "11"]
[White "Genghis_K"]
[Black "Kacparov"]
[Result "1-0"]
[WhiteElo "2857"]
[BlackElo "2943"]
[TimeControl "180+1"]
[EndTime "16:06:35 PST"]
[Termination "Genghis_K won by checkmate"]

1. e4 {[%clk 0:03:00.9]} 1... c5 {[%clk 0:02:59.4]} 2. Nf3 {[%clk 0:03:00.7]}
2... e6 {[%clk 0:02:59.9]} 3. d4 {[%clk 0:03:00.9]} 3... cxd4 {[%clk 0:03:00.8]}
4. Nxd4 {[%clk 0:03:01.8]} 4... Nc6 {[%clk 0:03:01.3]} 5. Nc3 {[%clk 0:03:01.6]}
5... Qc7 {[%clk 0:03:01.9]} 6. Be2 {[%clk 0:03:02.1]} 6... a6 {[%clk 0:03:02.6]}
7. Nxc6 {[%clk 0:03:02.7]} 7... bxc6 {[%clk 0:03:00.7]} 8. Qd3 {[%clk
0:03:03.3]} 8... d5 {[%clk 0:03:00]} 9. Qg3 {[%clk 0:03:02.9]} 9... Qxg3 {[%clk
0:03:00]} 10. hxg3 {[%clk 0:03:03.8]} 10... Nf6 {[%clk 0:03:00.2]} 11. g4 {[%clk
0:03:02.9]} 11... Nxe4 {[%clk 0:02:44.2]} 12. Nxe4 {[%clk 0:03:00]} 12... dxe4
{[%clk 0:02:45.1]} 13. g5 {[%clk 0:02:37.9]} 13... c5 {[%clk 0:02:40.6]} 14. Be3
{[%clk 0:02:36.7]} 14... Bb7 {[%clk 0:02:39.3]} 15. O-O-O {[%clk 0:02:36.5]}
15... Be7 {[%clk 0:02:34.8]} 16. g6 {[%clk 0:02:36.1]} 16... fxg6 {[%clk
0:02:24.5]} 17. Bc4 {[%clk 0:02:29.4]} 17... Bc8 {[%clk 0:02:10.7]} 18. Rde1
{[%clk 0:02:19.2]} 18... Kf7 {[%clk 0:02:08.4]} 19. f3 {[%clk 0:02:06.7]} 19...
exf3 {[%clk 0:02:05.4]} 20. Rhf1 {[%clk 0:02:06.2]} 20... Re8 {[%clk 0:01:57]}
21. Rxf3+ {[%clk 0:02:00.9]} 21... Kg8 {[%clk 0:01:57.5]} 22. Bf4 {[%clk
0:01:55.8]} 22... Bf8 {[%clk 0:01:51.4]} 23. Be5 {[%clk 0:01:49.4]} 23... Bb7
{[%clk 0:01:47.2]} 24. Rf2 {[%clk 0:01:47.5]} 24... Bd5 {[%clk 0:01:45.5]} 25.
Bf1 {[%clk 0:01:45]} 25... Be7 {[%clk 0:01:39.4]} 26. c4 {[%clk 0:01:44.5]}
26... Bc6 {[%clk 0:01:37.4]} 27. g3 {[%clk 0:01:43.8]} 27... Rad8 {[%clk
0:01:33.5]} 28. Bh3 {[%clk 0:01:41.2]} 28... Bf8 {[%clk 0:01:12.1]} 29. Rfe2
{[%clk 0:01:28.4]} 29... h5 {[%clk 0:00:47.5]} 30. Bc7 {[%clk 0:01:22]} 30...
Ra8 {[%clk 0:00:45.1]} 31. Bxe6+ {[%clk 0:01:21.4]} 31... Kh7 {[%clk 0:00:44.7]}
32. Bf4 {[%clk 0:01:19.5]} 32... Rad8 {[%clk 0:00:40.5]} 33. Bf7 {[%clk
0:01:16.4]} 33... Rxe2 {[%clk 0:00:40.1]} 34. Rxe2 {[%clk 0:01:16.6]} 34... Rd7
{[%clk 0:00:36.6]} 35. Be8 {[%clk 0:01:15.4]} 35... Bf3 {[%clk 0:00:35.8]} 36.
Re6 {[%clk 0:01:10.9]} 36... Rd1+ {[%clk 0:00:30]} 37. Kc2 {[%clk 0:01:10.8]}
37... Rd4 {[%clk 0:00:25]} 38. Bxg6+ {[%clk 0:01:03.1]} 38... Kg8 {[%clk
0:00:25.5]} 39. b3 {[%clk 0:01:02.9]} 39... h4 {[%clk 0:00:25]} 40. Re3 {[%clk
0:00:40.2]} 40... Bg4 {[%clk 0:00:22.9]} 41. Be5 {[%clk 0:00:36.2]} 41... Rd8
{[%clk 0:00:18.8]} 42. gxh4 {[%clk 0:00:35.9]} 42... Be7 {[%clk 0:00:18.8]} 43.
h5 {[%clk 0:00:24.1]} 43... Bg5 {[%clk 0:00:18.4]} 44. Rg3 {[%clk 0:00:23.7]}
44... Bd1+ {[%clk 0:00:18.3]} 45. Kb2 {[%clk 0:00:17.9]} 45... Rd2+ {[%clk
0:00:16.5]} 46. Ka3 {[%clk 0:00:13.8]} 46... Be7 {[%clk 0:00:15.3]} 47. Be4
{[%clk 0:00:11]} 47... Bf8 {[%clk 0:00:14.1]} 48. h6 {[%clk 0:00:10.6]} 48...
Rd7 {[%clk 0:00:13]} 49. h7+ {[%clk 0:00:03.9]} 49... Kh8 {[%clk 0:00:13.1]} 50.
Rg1 {[%clk 0:00:03.1]} 50... Bh5 {[%clk 0:00:12.3]} 51. Rf1 {[%clk 0:00:03.1]}
51... Rd8 {[%clk 0:00:11]} 52. Bd5 {[%clk 0:00:02.9]} 52... Be7 {[%clk
0:00:10.4]} 53. Rg1 {[%clk 0:00:03]} 53... Bf8 {[%clk 0:00:09.6]} 54. Bc3 {[%clk
0:00:03.1]} 54... Kxh7 {[%clk 0:00:09.4]} 55. Rh1 {[%clk 0:00:02.9]} 55... g6
{[%clk 0:00:09.8]} 56. Be4 {[%clk 0:00:03.2]} 56... Kg8 {[%clk 0:00:09]} 57.
Bd5+ {[%clk 0:00:03.8]} 57... Kh7 {[%clk 0:00:09.4]} 58. Rf1 {[%clk 0:00:03.3]}
58... Kh6 {[%clk 0:00:07.6]} 59. Bd2+ {[%clk 0:00:03.2]} 59... Kg7 {[%clk
0:00:07.8]} 60. Rf7+ {[%clk 0:00:03.4]} 60... Kh8 {[%clk 0:00:07.3]} 61. Bc3+
{[%clk 0:00:03.6]} 61... Kg8 {[%clk 0:00:07.3]} 62. Rd7# {[%clk 0:00:03.8]} 1-0

[Event "Late-Titled-Tuesday-Blitz-January-30-2024"]
[Site "Chess.com"]
[Date "2024.01.30"]
[Round "11"]
[White "GoltsevDmitry2000"]
[Black "yaguigor"]
[Result "1-0"]
[WhiteElo "2808"]
[BlackElo "2632"]
[TimeControl "180+1"]
[EndTime "16:06:35 PST"]
[Termination "GoltsevDmitry2000 won on time"]

1. e4 {[%clk 0:03:00.9]} 1... e5 {[%clk 0:02:58.5]} 2. Nf3 {[%clk 0:03:01]} 2...
Nc6 {[%clk 0:02:58.9]} 3. Bb5 {[%clk 0:03:01.4]} 3... f5 {[%clk 0:02:58.5]} 4.
d4 {[%clk 0:03:01]} 4... fxe4 {[%clk 0:02:53.4]} 5. Bxc6 {[%clk 0:03:01]} 5...
dxc6 {[%clk 0:02:32.6]} 6. Nxe5 {[%clk 0:03:01.9]} 6... Nf6 {[%clk 0:02:31.6]}
7. O-O {[%clk 0:03:01]} 7... Bd6 {[%clk 0:02:27.8]} 8. Nc3 {[%clk 0:02:59.1]}
8... O-O {[%clk 0:02:24]} 9. Qe2 {[%clk 0:02:59.1]} 9... Qe7 {[%clk 0:02:01.6]}
10. Bg5 {[%clk 0:02:47.6]} 10... Bxe5 {[%clk 0:01:54.7]} 11. dxe5 {[%clk
0:02:47.3]} 11... Qxe5 {[%clk 0:01:55.3]} 12. Bxf6 {[%clk 0:02:47.5]} 12... Qxf6
{[%clk 0:01:50.3]} 13. Qxe4 {[%clk 0:02:44.6]} 13... Bf5 {[%clk 0:01:48.7]} 14.
Qa4 {[%clk 0:02:36.9]} 14... Kh8 {[%clk 0:01:43.7]} 15. Rad1 {[%clk 0:02:34.6]}
15... a5 {[%clk 0:01:38.9]} 16. Ne2 {[%clk 0:02:21.2]} 16... b5 {[%clk
0:01:33.1]} 17. Qb3 {[%clk 0:02:20.3]} 17... a4 {[%clk 0:01:31.8]} 18. Qc3
{[%clk 0:02:06.3]} 18... Qxc3 {[%clk 0:01:30.3]} 19. Nxc3 {[%clk 0:02:07.2]}
19... Bxc2 {[%clk 0:01:30]} 20. Rd7 {[%clk 0:02:07.8]} 20... Rac8 {[%clk
0:01:27.1]} 21. Re1 {[%clk 0:02:05.6]} 21... Bf5 {[%clk 0:01:26.9]} 22. Rde7
{[%clk 0:02:03.8]} 22... Kg8 {[%clk 0:01:21.6]} 23. f3 {[%clk 0:01:57.7]} 23...
Rf7 {[%clk 0:01:12.8]} 24. Re8+ {[%clk 0:01:57.2]} 24... Rxe8 {[%clk 0:01:10.2]}
25. Rxe8+ {[%clk 0:01:58.1]} 25... Rf8 {[%clk 0:01:10.4]} 26. Re7 {[%clk
0:01:58.5]} 26... Rc8 {[%clk 0:01:10.7]} 27. Kf2 {[%clk 0:01:51.9]} 27... Kf8
{[%clk 0:01:08.5]} 28. Re5 {[%clk 0:01:51.5]} 28... Bg6 {[%clk 0:01:07.7]} 29.
Rc5 {[%clk 0:01:50.6]} 29... Be8 {[%clk 0:01:05.6]} 30. Ke3 {[%clk 0:01:49.8]}
30... Rd8 {[%clk 0:01:05.5]} 31. Ne4 {[%clk 0:01:48.8]} 31... Rd1 {[%clk
0:01:02.9]} 32. a3 {[%clk 0:01:48.1]} 32... h6 {[%clk 0:01:01.2]} 33. Rc2 {[%clk
0:01:46]} 33... Ke7 {[%clk 0:00:58.2]} 34. h4 {[%clk 0:01:35]} 34... Bg6 {[%clk
0:00:57.2]} 35. Rxc6 {[%clk 0:01:32.4]} 35... Bxe4 {[%clk 0:00:56.9]} 36. Kxe4
{[%clk 0:01:31.3]} 36... Rd2 {[%clk 0:00:48.8]} 37. Rxc7+ {[%clk 0:01:30.4]}
37... Kf6 {[%clk 0:00:49.5]} 38. Rc6+ {[%clk 0:01:29.2]} 38... Kf7 {[%clk
0:00:49.1]} 39. Rc7+ {[%clk 0:01:29.6]} 39... Kf6 {[%clk 0:00:49.3]} 40. g4
{[%clk 0:01:23.6]} 40... Rxb2 {[%clk 0:00:47.9]} 41. Rb7 {[%clk 0:01:23.6]}
41... b4 {[%clk 0:00:41]} 42. axb4 {[%clk 0:01:20.4]} 42... a3 {[%clk
0:00:40.3]} 43. Rb6+ {[%clk 0:01:20.8]} 43... Kf7 {[%clk 0:00:37.8]} 44. Kf5
{[%clk 0:01:13.5]} 44... g6+ {[%clk 0:00:36.5]} 45. Ke5 {[%clk 0:01:13.7]} 45...
a2 {[%clk 0:00:34.5]} 46. Rb7+ {[%clk 0:01:13]} 46... Ke8 {[%clk 0:00:33.2]} 47.
Ra7 {[%clk 0:01:13.5]} 47... Rxb4 {[%clk 0:00:30.1]} 48. Rxa2 {[%clk 0:01:12.4]}
48... Rb6 {[%clk 0:00:29.7]} 49. Ra7 {[%clk 0:01:10.9]} 49... Kf8 {[%clk
0:00:28.5]} 50. Rh7 {[%clk 0:01:05.6]} 50... h5 {[%clk 0:00:28.1]} 51. gxh5
{[%clk 0:00:53.9]} 51... gxh5 {[%clk 0:00:27.5]} 52. Kf5 {[%clk 0:00:54.3]}
52... Kg8 {[%clk 0:00:25.1]} 53. Rxh5 {[%clk 0:00:51.1]} 53... Kg7 {[%clk
0:00:18.5]} 54. Kg4 {[%clk 0:00:50.6]} 54... Rb1 {[%clk 0:00:17]} 55. Ra5 {[%clk
0:00:49.6]} 55... Rg1+ {[%clk 0:00:14.9]} 56. Kf5 {[%clk 0:00:45.7]} 56... Rb1
{[%clk 0:00:14.2]} 57. f4 {[%clk 0:00:43.8]} 57... Rb4 {[%clk 0:00:13]} 58. Ra7+
{[%clk 0:00:42.8]} 58... Kh6 {[%clk 0:00:12.3]} 59. Re7 {[%clk 0:00:42.5]} 59...
Rb5+ {[%clk 0:00:11.4]} 60. Kf6 {[%clk 0:00:40.2]} 60... Rb4 {[%clk 0:00:09.5]}
61. f5 {[%clk 0:00:40.5]} 61... Rxh4 {[%clk 0:00:08.3]} 62. Ra7 {[%clk
0:00:33.2]} 62... Rb4 {[%clk 0:00:07.7]} 63. Kf7 {[%clk 0:00:30.4]} 63... Kh7
{[%clk 0:00:06.2]} 64. f6 {[%clk 0:00:30.5]} 64... Re4 {[%clk 0:00:04.8]} 65.
Kf8+ {[%clk 0:00:27.6]} 65... Kg6 {[%clk 0:00:02.5]} 66. f7 {[%clk 0:00:25.6]}
1-0

[Event "Late-Titled-Tuesday-Blitz-January-30-2024"]
[Site "Chess.com"]
[Date "2024.01.30"]
[Round "11"]
[White "RodokininEV"]
[Black "toninhojit"]
[Result "1/2-1/2"]
[WhiteElo "2624"]
[BlackElo "2514"]
[TimeControl "180+1"]
[EndTime "16:06:36 PST"]
[Termination "Game drawn - timeout vs insufficient material"]

1. e4 {[%clk 0:03:00.9]} 1... e5 {[%clk 0:02:59.7]} 2. Nf3 {[%clk 0:03:01.3]}
2... Nc6 {[%clk 0:02:59.9]} 3. Bb5 {[%clk 0:03:01.7]} 3... Nf6 {[%clk
0:03:00.2]} 4. d3 {[%clk 0:02:57.9]} 4... Bc5 {[%clk 0:02:59.9]} 5. c4 {[%clk
0:02:56.9]} 5... d6 {[%clk 0:02:56.2]} 6. Nc3 {[%clk 0:02:56.6]} 6... O-O {[%clk
0:02:55.1]} 7. h3 {[%clk 0:02:56.5]} 7... Nd4 {[%clk 0:02:55.4]} 8. Nxd4 {[%clk
0:02:55.2]} 8... Bxd4 {[%clk 0:02:56.3]} 9. Ba4 {[%clk 0:02:52]} 9... c6 {[%clk
0:02:47]} 10. O-O {[%clk 0:02:49.6]} 10... h6 {[%clk 0:02:43.1]} 11. Kh1 {[%clk
0:02:49]} 11... Nh7 {[%clk 0:02:39.9]} 12. f4 {[%clk 0:02:48.2]} 12... f5 {[%clk
0:02:38.6]} 13. fxe5 {[%clk 0:02:42.5]} 13... Bxe5 {[%clk 0:02:37.4]} 14. d4
{[%clk 0:02:36.3]} 14... Bg3 {[%clk 0:02:36.2]} 15. Bf4 {[%clk 0:02:31.7]} 15...
Bxf4 {[%clk 0:02:23.7]} 16. Rxf4 {[%clk 0:02:32.6]} 16... Qg5 {[%clk 0:02:16.5]}
17. Qf3 {[%clk 0:02:29.6]} 17... Bd7 {[%clk 0:02:16.6]} 18. Rf1 {[%clk
0:02:25.8]} 18... fxe4 {[%clk 0:02:06.4]} 19. Nxe4 {[%clk 0:02:26.7]} 19... Qe7
{[%clk 0:02:01]} 20. Bc2 {[%clk 0:02:18.1]} 20... Rxf4 {[%clk 0:01:59]} 21. Qxf4
{[%clk 0:02:19]} 21... Rf8 {[%clk 0:01:57.9]} 22. Qc1 {[%clk 0:02:18.6]} 22...
Bf5 {[%clk 0:01:35]} 23. Re1 {[%clk 0:01:57.5]} 23... Qh4 {[%clk 0:01:27.4]} 24.
Re2 {[%clk 0:01:15.7]} 24... Re8 {[%clk 0:00:51.7]} 25. Nc3 {[%clk 0:01:01.1]}
25... Rxe2 {[%clk 0:00:43.7]} 26. Nxe2 {[%clk 0:01:02]} 26... Bxc2 {[%clk
0:00:26]} 27. Qxc2 {[%clk 0:01:02.9]} 27... Nf6 {[%clk 0:00:21.2]} 28. Qd3
{[%clk 0:00:50.2]} 28... Qe4 {[%clk 0:00:16]} 29. Qd2 {[%clk 0:00:45.9]} 29...
Nh5 {[%clk 0:00:13.4]} 30. Kh2 {[%clk 0:00:42.8]} 30... g5 {[%clk 0:00:11.6]}
31. b3 {[%clk 0:00:40.2]} 31... Kg7 {[%clk 0:00:11]} 32. Nc3 {[%clk 0:00:35.6]}
32... Qf4+ {[%clk 0:00:10.4]} 33. Qxf4 {[%clk 0:00:34.6]} 33... Nxf4 {[%clk
0:00:11.3]} 34. Kg3 {[%clk 0:00:33.7]} 34... Kf7 {[%clk 0:00:10.2]} 35. Kf3
{[%clk 0:00:33.3]} 35... Ke6 {[%clk 0:00:10.1]} 36. h4 {[%clk 0:00:30.8]} 36...
d5 {[%clk 0:00:09.4]} 37. hxg5 {[%clk 0:00:28.3]} 37... hxg5 {[%clk 0:00:10.3]}
38. Kg4 {[%clk 0:00:28.1]} 38... Kf6 {[%clk 0:00:10.7]} 39. g3 {[%clk
0:00:21.8]} 39... Ne6 {[%clk 0:00:08.4]} 40. cxd5 {[%clk 0:00:20]} 40... Nxd4
{[%clk 0:00:08.6]} 41. dxc6 {[%clk 0:00:16]} 41... bxc6 {[%clk 0:00:09.5]} 42.
Ne4+ {[%clk 0:00:14.6]} 42... Kg6 {[%clk 0:00:10]} 43. Nxg5 {[%clk 0:00:15.5]}
43... Nc2 {[%clk 0:00:08.8]} 44. Nf3 {[%clk 0:00:11.7]} 44... Nb4 {[%clk
0:00:08.9]} 45. a3 {[%clk 0:00:09.1]} 45... Nd3 {[%clk 0:00:09]} 46. Nd4 {[%clk
0:00:07.2]} 46... c5 {[%clk 0:00:07.6]} 47. Nc6 {[%clk 0:00:06.7]} 47... a6
{[%clk 0:00:07.3]} 48. Kf3 {[%clk 0:00:05.9]} 48... Kf5 {[%clk 0:00:06.7]} 49.
Ke3 {[%clk 0:00:05.6]} 49... Nc1 {[%clk 0:00:06.7]} 50. Na5 {[%clk 0:00:04.8]}
50... Kg4 {[%clk 0:00:05.4]} 51. Ke4 {[%clk 0:00:05.1]} 51... Kxg3 {[%clk
0:00:05.3]} 52. Kd5 {[%clk 0:00:05.5]} 52... Kf3 {[%clk 0:00:04.3]} 53. Kxc5
{[%clk 0:00:05.4]} 53... Ke3 {[%clk 0:00:04.8]} 54. Kb6 {[%clk 0:00:05.3]} 54...
Kd3 {[%clk 0:00:05.4]} 55. Kxa6 {[%clk 0:00:05.1]} 55... Kc3 {[%clk 0:00:06.1]}
56. b4 {[%clk 0:00:05]} 56... Kb2 {[%clk 0:00:05.2]} 57. b5 {[%clk 0:00:04.9]}
57... Nd3 {[%clk 0:00:05.2]} 58. a4 {[%clk 0:00:04.5]} 58... Ka3 {[%clk
0:00:05.8]} 59. b6 {[%clk 0:00:02.7]} 59... Kxa4 {[%clk 0:00:05.4]} 1/2-1/2